fUSD/lending_fUSD_20260613
["ID","MTS","AMOUNT","RATE_DAILY","PERIOD"]
[424963782,1781358641000,-187.0,7.706e-05,2]
[424963783,1781358641000,-187.0,7.777e-05,2]
[424963785,1781358641000,-253.34097246,7.849e-05,2]
[424963790,1781358641000,-450.31,8.028e-05,2]
[424963788,1781358641000,-193.0,7.882e-05,2]
[424963809,1781358641000,-310.0,8.141e-05,2]
[424963843,1781358641000,-314.0,8.157e-05,2]
[424963821,1781358641000,-311.0,8.141e-05,2]
[424963834,1781358641000,-321.0,8.142e-05,2]
[424963840,1781358641000,-313.0,8.142e-05,2]
[424963837,1781358641000,-318.0,8.142e-05,2]
[424963846,1781358641000,-160.0,8.17e-05,2]
[424963845,1781358641000,-319.0,8.157e-05,2]
[424963848,1781358641000,-317.0,8.219e-05,2]
[424963847,1781358641000,-216.029201,8.172e-05,2]
[424963849,1781358641000,-314.0,8.219e-05,2]
[424963853,1781358641000,-162.76,8.566e-05,2]
[424963850,1781358641000,-163.87,8.219e-05,2]
[424963844,1781358641000,-311.0,8.157e-05,2]
[424963851,1781358641000,-2000.0,8.219e-05,2]
[424963855,1781358641000,-150.0,8.669e-05,2]
[424963856,1781358641000,-9999.99,8.864e-05,2]
[424963857,1781358641000,-9999.99,8.864e-05,2]
[424963858,1781358641000,-299.99,8.864e-05,2]
[424963860,1781358641000,-150.99,8.864e-05,2]
[424963859,1781358641000,-1738.62,8.864e-05,2]
[424963861,1781358641000,-450.31,8.92e-05,2]
[424963863,1781358641000,-163.87,9.247e-05,2]
[424963862,1781358641000,-1207.54000591,9.197e-05,2]
[424963812,1781358641000,-318.0,8.141e-05,2]
[424963854,1781358641000,-71362.50106283,8.615e-05,2]
[424963839,1781358641000,-320.0,8.142e-05,2]
[424963852,1781358641000,-2395.5,8.219e-05,2]
[424963838,1781358641000,-314.0,8.142e-05,2]
[424963813,1781358641000,-310.0,8.141e-05,2]
[424963819,1781358641000,-315.0,8.141e-05,2]
[424963815,1781358641000,-312.0,8.141e-05,2]
[424963817,1781358641000,-312.0,8.141e-05,2]
[424963814,1781358641000,-321.0,8.141e-05,2]
[424963816,1781358641000,-320.0,8.141e-05,2]
[424963822,1781358641000,-311.0,8.142e-05,2]
[424963825,1781358641000,-319.0,8.142e-05,2]
[424963824,1781358641000,-313.0,8.142e-05,2]
[424963827,1781358641000,-319.0,8.142e-05,2]
[424963828,1781358641000,-314.0,8.142e-05,2]
[424963823,1781358641000,-320.0,8.142e-05,2]
[424963829,1781358641000,-309.0,8.142e-05,2]
[424963831,1781358641000,-321.0,8.142e-05,2]
[424963832,1781358641000,-312.0,8.142e-05,2]
[424963830,1781358641000,-311.0,8.142e-05,2]
[424963833,1781358641000,-317.0,8.142e-05,2]
[424963836,1781358641000,-320.0,8.142e-05,2]
[424963842,1781358641000,-314.0,8.142e-05,2]
[424963841,1781358641000,-314.0,8.142e-05,2]
[424963826,1781358641000,-311.0,8.142e-05,2]
[424963835,1781358641000,-318.0,8.142e-05,2]
[424963889,1781358642000,-301.15,9.7e-05,2]
[424963901,1781358642000,-1191.18,0.00010529,2]
[424963899,1781358642000,-1191.18,0.00010278,2]
[424963896,1781358642000,-166.55,0.0001009,2]
[424963893,1781358642000,-1272.22261966,0.0001,2]
[424963900,1781358642000,-166.55,0.00010412,2]
[424963895,1781358642000,-1191.18,0.00010027,2]
[424963894,1781358642000,-163.67,0.0001,2]
[424963903,1781358642000,-450.31,0.00010704,2]
[424963897,1781358642000,-163.87,0.00010274,2]
[424963902,1781358642000,-504.43,0.000106,2]
[424963916,1781358642000,-150.0,0.00010959,2]
[424963911,1781358642000,-2366.95391632,0.000109,2]
[424963909,1781358642000,-151.0,0.00010804,2]
[424963907,1781358642000,-151.0,0.00010804,2]
[424963906,1781358642000,-151.0,0.00010804,2]
[424963905,1781358642000,-1191.18,0.00010779,2]
[424963908,1781358642000,-151.0,0.00010804,2]
[424963910,1781358642000,-229.774379,0.00010877,2]
[424963918,1781358642000,-1191.18,0.0001103,2]
[424963912,1781358642000,-2366.95391626,0.000109,2]
[424963920,1781358642000,-166.66,0.00011068,2]
[424963891,1781358642000,-166.55,9.767e-05,2]
[424963904,1781358642000,-166.55,0.00010735,2]
[424963892,1781358642000,-450.31,9.812e-05,2]
[424963865,1781358642000,-141116.86826363,9.368e-05,2]
[424963886,1781358642000,-301.16,9.697e-05,2]
[424963914,1781358642000,-166.66,0.00010959,2]
[424963866,1781358642000,-606.08445463,9.559e-05,2]
[424963864,1781358642000,-2000.0,9.247e-05,2]
[424963868,1781358642000,-301.16,9.599e-05,2]
[424963867,1781358642000,-301.15,9.593e-05,2]
[424963873,1781358642000,-301.16,9.628e-05,2]
[424963869,1781358642000,-301.16,9.6e-05,2]
[424963870,1781358642000,-301.15,9.613e-05,2]
[424963877,1781358642000,-301.15,9.659e-05,2]
[424963871,1781358642000,-301.15,9.616e-05,2]
[424963872,1781358642000,-301.15,9.624e-05,2]
[424963890,1781358642000,-250.0,9.741e-05,2]
[424963874,1781358642000,-301.15,9.637e-05,2]
[424963876,1781358642000,-301.16,9.65e-05,2]
[424963879,1781358642000,-301.15,9.671e-05,2]
[424963880,1781358642000,-301.15,9.68e-05,2]
[424963878,1781358642000,-301.15,9.661e-05,2]
[424963882,1781358642000,-301.16,9.694e-05,2]
[424963887,1781358642000,-301.15,9.698e-05,2]
[424963884,1781358642000,-301.16,9.696e-05,2]
[424963881,1781358642000,-301.16,9.693e-05,2]
[424963888,1781358642000,-301.15,9.699e-05,2]
[424963885,1781358642000,-301.16,9.696e-05,2]
[424963883,1781358642000,-301.16,9.696e-05,2]
[424963875,1781358642000,-301.15,9.643e-05,2]
[424963913,1781358642000,-500.0,0.00010958,2]
[424963898,1781358642000,-2000.0,0.00010274,2]
[424963919,1781358642000,-166.55,0.00011057,2]
[424963952,1781358642000,-500.0,0.00013698,2]
[424963949,1781358642000,-500.0,0.00013698,2]
[424963955,1781358642000,-1466.44,0.00013698,2]
[424963951,1781358642000,-500.0,0.00013698,2]
[424963946,1781358642000,-500.0,0.00013698,2]
[424963954,1781358642000,-1466.44,0.00013698,2]
[424963950,1781358642000,-500.0,0.00013698,2]
[424963953,1781358642000,-1466.44,0.00013698,2]
[424963957,1781358642000,-1466.44,0.00013698,2]
[424963967,1781358642000,-500.0,0.00013698,2]
[424963956,1781358642000,-1466.44,0.00013698,2]
[424963947,1781358642000,-500.0,0.00013698,2]
[424963958,1781358642000,-1466.44,0.00013698,2]
[424963965,1781358642000,-500.0,0.00013698,2]
[424963964,1781358642000,-500.0,0.00013698,2]
[424963963,1781358642000,-500.0,0.00013698,2]
[424963961,1781358642000,-1466.44,0.00013698,2]
[424963966,1781358642000,-500.0,0.00013698,2]
[424963962,1781358642000,-1466.44,0.00013698,2]
[424963968,1781358642000,-500.0,0.00013698,2]
[424963970,1781358642000,-466.46074342,0.00013698,2]
[424963972,1781358642000,-591.96,0.00013698,2]
[424963969,1781358642000,-500.0,0.00013698,2]
[424963917,1781358642000,-150.0,0.00010989,2]
[424963959,1781358642000,-1466.44,0.00013698,2]
[424963948,1781358642000,-500.0,0.00013698,2]
[424963960,1781358642000,-1466.44,0.00013698,2]
[424963937,1781358642000,-8216.61261296,0.00013528,2]
[424963945,1781358642000,-500.0,0.00013698,2]
[424963915,1781358642000,-150.0,0.00010959,2]
[424963921,1781358642000,-166.66,0.00011178,2]
[424963925,1781358642000,-166.55,0.00011379,2]
[424963927,1781358642000,-166.66,0.00011507,2]
[424963926,1781358642000,-166.66,0.00011397,2]
[424963928,1781358642000,-264.66,0.00012283,2]
[424963924,1781358642000,-2000.0,0.00011301,2]
[424963929,1781358642000,-163.87,0.00012329,2]
[424963931,1781358642000,-294.36502897,0.00012499,2]
[424963923,1781358642000,-163.87,0.00011301,2]
[424963930,1781358642000,-2000.0,0.00012329,2]
[424963922,1781358642000,-166.66,0.00011288,2]
[424963934,1781358642000,-151.0,0.00012499,2]
[424963932,1781358642000,-312.0,0.00012499,2]
[424963935,1781358642000,-18760.9693708,0.00012807,2]
[424963936,1781358642000,-500.0,0.00013527,2]
[424963941,1781358642000,-500.0,0.00013698,2]
[424963942,1781358642000,-802.41,0.00013698,2]
[424963943,1781358642000,-500.0,0.00013698,2]
[424963971,1781358642000,-500.0,0.00013698,2]
[424963939,1781358642000,-500.0,0.00013698,2]
[424963933,1781358642000,-316.0,0.00012499,2]
[424963944,1781358642000,-500.0,0.00013698,2]
[424963938,1781358642000,-209.19058017,0.00013598,2]
[424963940,1781358642000,-591.76718156,0.00013698,2]
[424964000,1781358643000,-220.0,0.00014351,2]
[424964005,1781358643000,-158.06162742,0.00014521,10]
[424964002,1781358643000,-150.0,0.00014351,2]
[424963999,1781358643000,-150.0,0.00014351,2]
[424964001,1781358643000,-150.0,0.00014351,2]
[424964006,1781358643000,-444.0,0.00014746,2]
[424964007,1781358643000,-444.0,0.00014747,2]
[424964003,1781358643000,-150.0,0.00014351,2]
[424964004,1781358643000,-150.0,0.00014351,2]
[424964014,1781358643000,-444.0,0.00014837,2]
[424964008,1781358643000,-444.0,0.0001476,2]
[424964011,1781358643000,-444.0,0.00014798,2]
[424964010,1781358643000,-444.0,0.00014784,2]
[424964012,1781358643000,-297.72833017,0.00014801,2]
[424964015,1781358643000,-444.0,0.00014838,2]
[424964013,1781358643000,-444.0,0.00014814,2]
[424964016,1781358643000,-444.0,0.00014885,2]
[424963998,1781358643000,-150.0,0.00014351,2]
[424964019,1781358643000,-591.96,0.00014898,2]
[424964009,1781358643000,-444.0,0.00014775,2]
[424963994,1781358643000,-2366.95391626,0.00014343,2]
[424963985,1781358643000,-2000.0,0.00013699,7]
[424963996,1781358643000,-383.0,0.00014351,2]
[424964023,1781358643000,-1081.8,0.00014898,2]
[424963976,1781358643000,-500.0,0.00013698,2]
[424963974,1781358643000,-500.0,0.00013698,2]
[424963973,1781358643000,-500.0,0.00013698,2]
[424963975,1781358643000,-500.0,0.00013698,2]
[424963977,1781358643000,-619.63,0.00013698,2]
[424963981,1781358643000,-500.0,0.00013698,2]
[424963980,1781358643000,-500.0,0.00013698,2]
[424963978,1781358643000,-500.0,0.00013698,2]
[424963997,1781358643000,-1228.0,0.00014351,2]
[424963982,1781358643000,-1081.8,0.00013698,2]
[424963986,1781358643000,-158.06162742,0.00013699,10]
[424963988,1781358643000,-211.096963,0.000137,2]
[424963987,1781358643000,-262.85643787,0.00013699,2]
[424963989,1781358643000,-633.330888,0.000137,2]
[424963990,1781358643000,-1500.0,0.0001379,2]
[424963992,1781358643000,-50995.79764846,0.0001399,2]
[424963991,1781358643000,-1130.8036055,0.00013852,2]
[424963993,1781358643000,-1555.5,0.00014338,2]
[424963995,1781358643000,-3557.0,0.00014351,2]
[424963983,1781358643000,-200.0,0.00013699,2]
[424964017,1781358643000,-1613.0535,0.00014886,2]
[424964022,1781358643000,-619.63,0.00014898,2]
[424964021,1781358643000,-500.0,0.00014898,2]
[424964052,1781358643000,-334.74620257,0.00015,2]
[424964047,1781358643000,-1812.0,0.00015,2]
[424964045,1781358643000,-444.0,0.00014996,2]
[424964048,1781358643000,-160.27416082,0.00015,10]
[424964050,1781358643000,-500.0,0.00015,2]
[424964049,1781358643000,-500.0,0.00015,2]
[424964054,1781358643000,-500.0,0.00015,3]
[424964057,1781358643000,-1253.74608,0.00015,2]
[424964062,1781358643000,-1253.74608,0.000153,2]
[424964051,1781358643000,-500.0,0.00015,2]
[424964056,1781358643000,-9426.09515546,0.00015,2]
[424964059,1781358643000,-9426.09515546,0.000152,2]
[424964058,1781358643000,-500.0,0.000151,3]
[424964061,1781358643000,-9426.09515546,0.000153,2]
[424964065,1781358643000,-1253.74608,0.000155,2]
[424964063,1781358643000,-1672.7364795,0.00015434,2]
[424964064,1781358643000,-9426.09515546,0.000155,2]
[424964066,1781358643000,-9426.09515546,0.000156,2]
[424964067,1781358643000,-1253.74608,0.000156,2]
[424964018,1781358643000,-500.0,0.00014898,2]
[424964055,1781358643000,-223.16413505,0.00015,3]
[424964046,1781358643000,-444.0,0.00014996,2]
[424964060,1781358643000,-1253.74608,0.000152,2]
[424964042,1781358643000,-444.0,0.00014917,2]
[424964020,1781358643000,-500.0,0.00014898,2]
[424964044,1781358643000,-1853.1,0.00014976,2]
[424964025,1781358643000,-231.73388163,0.00014899,2]
[424964030,1781358643000,-1466.44,0.00014899,2]
[424964028,1781358643000,-1466.44,0.00014899,2]
[424964024,1781358643000,-500.0,0.00014899,2]
[424964031,1781358643000,-1466.44,0.00014899,2]
[424964029,1781358643000,-1466.44,0.00014899,2]
[424964026,1781358643000,-1466.44,0.00014899,2]
[424964033,1781358643000,-1466.44,0.00014899,2]
[424964027,1781358643000,-1466.44,0.00014899,2]
[424964037,1781358643000,-151.0,0.000149,2]
[424964039,1781358643000,-444.0,0.00014904,2]
[424964036,1781358643000,-151.0,0.000149,2]
[424964043,1781358643000,-444.0,0.00014935,2]
[424964040,1781358643000,-264.66,0.00014907,2]
[424964038,1781358643000,-186.5,0.000149,2]
[424964034,1781358643000,-1466.44,0.00014899,2]
[424964035,1781358643000,-1513.3,0.000149,2]
[424964041,1781358643000,-444.0,0.00014909,2]
[424964102,1781358644000,-501.0,0.00018,2]
[424964100,1781358644000,-2366.95391626,0.00017854,2]
[424964103,1781358644000,-200.0,0.00018,2]
[424964101,1781358644000,-501.0,0.00018,2]
[424964097,1781358644000,-1466.44,0.00017414,2]
[424964098,1781358644000,-1934.38338736,0.00017626,2]
[424964096,1781358644000,-150.0,0.00017351,2]
[424964104,1781358644000,-6890.60071849,0.00018,2]
[424964099,1781358644000,-7494.98,0.00017808,2]
[424964112,1781358644000,-151.0,0.00018174,2]
[424964117,1781358644000,-500.0,0.00018174,2]
[424964113,1781358644000,-151.0,0.00018174,2]
[424964107,1781358644000,-156.41338181,0.00018086,2]
[424964106,1781358644000,-1726.70077648,0.00018,2]
[424964109,1781358644000,-151.0,0.00018174,2]
[424964111,1781358644000,-255.89910808,0.00018174,2]
[424964108,1781358644000,-151.0,0.00018174,2]
[424964110,1781358644000,-151.0,0.00018174,2]
[424964123,1781358644000,-500.0,0.00018174,2]
[424964114,1781358644000,-151.0,0.00018174,2]
[424964095,1781358644000,-150.0,0.00017351,2]
[424964105,1781358644000,-501.0,0.00018,2]
[424964090,1781358644000,-3557.0,0.00017351,2]
[424964071,1781358644000,-9426.09515546,0.000159,2]
[424964092,1781358644000,-1228.0,0.00017351,2]
[424964115,1781358644000,-151.0,0.00018174,2]
[424964069,1781358644000,-9426.09515546,0.000158,2]
[424964068,1781358644000,-2883.18462174,0.000158,5]
[424964070,1781358644000,-392.00968676,0.000159,4]
[424964072,1781358644000,-1734.62772924,0.00015982,2]
[424964073,1781358644000,-500.0,0.00016011,3]
[424964077,1781358644000,-9426.09515546,0.000161,2]
[424964082,1781358644000,-500.0,0.000165,3]
[424964079,1781358644000,-9426.09515546,0.000164,2]
[424964078,1781358644000,-9426.09515546,0.000162,2]
[424964080,1781358644000,-362.3,0.00016438,2]
[424964081,1781358644000,-7494.98,0.00016438,2]
[424964083,1781358644000,-500.0,0.000165,3]
[424964084,1781358644000,-1798.80895522,0.0001653,2]
[424964085,1781358644000,-168.5,0.00016712,2]
[424964086,1781358644000,-1865.36488656,0.00017078,2]
[424964089,1781358644000,-500.0,0.0001735,2]
[424964087,1781358644000,-7494.98,0.00017123,2]
[424964091,1781358644000,-383.0,0.00017351,2]
[424964093,1781358644000,-150.0,0.00017351,2]
[424964094,1781358644000,-150.0,0.00017351,2]
[424964088,1781358644000,-802.41,0.0001735,2]
[424964118,1781358644000,-151.0,0.00018174,2]
[424964168,1781358644000,-6890.60071849,0.000191,2]
[424964121,1781358644000,-151.0,0.00018174,2]
[424964153,1781358644000,-151.0,0.00018174,2]
[424964150,1781358644000,-151.0,0.00018174,2]
[424964149,1781358644000,-500.0,0.00018174,2]
[424964152,1781358644000,-151.0,0.00018174,2]
[424964148,1781358644000,-151.0,0.00018174,2]
[424964147,1781358644000,-151.0,0.00018174,2]
[424964151,1781358644000,-151.0,0.00018174,2]
[424964154,1781358644000,-6890.60071849,0.000182,2]
[424964164,1781358644000,-2080.17592889,0.00018722,2]
[424964163,1781358644000,-1726.70077648,0.000187,2]
[424964155,1781358644000,-1726.70077648,0.000182,2]
[424964156,1781358644000,-6890.60071849,0.000184,2]
[424964158,1781358644000,-362.3,0.0001841,2]
[424964157,1781358644000,-1726.70077648,0.000184,2]
[424964161,1781358644000,-1272.22261964,0.00018586,2]
[424964159,1781358644000,-6890.60071849,0.000185,2]
[424964160,1781358644000,-1726.70077648,0.000185,2]
[424964166,1781358644000,-6890.60071849,0.000189,2]
[424964165,1781358644000,-501.0,0.00018729,2]
[424964167,1781358644000,-1726.70077648,0.000189,2]
[424964119,1781358644000,-151.0,0.00018174,2]
[424964145,1781358644000,-151.0,0.00018174,2]
[424964144,1781358644000,-500.0,0.00018174,2]
[424964162,1781358644000,-6890.60071849,0.000187,2]
[424964141,1781358644000,-500.0,0.00018174,2]
[424964146,1781358644000,-500.0,0.00018174,2]
[424964122,1781358644000,-151.0,0.00018174,2]
[424964120,1781358644000,-500.0,0.00018174,2]
[424964124,1781358644000,-151.0,0.00018174,2]
[424964129,1781358644000,-151.0,0.00018174,2]
[424964132,1781358644000,-500.0,0.00018174,2]
[424964131,1781358644000,-151.0,0.00018174,2]
[424964128,1781358644000,-500.0,0.00018174,2]
[424964127,1781358644000,-2005.9555727,0.00018174,2]
[424964130,1781358644000,-151.0,0.00018174,2]
[424964125,1781358644000,-500.0,0.00018174,2]
[424964116,1781358644000,-151.0,0.00018174,2]
[424964134,1781358644000,-500.0,0.00018174,2]
[424964126,1781358644000,-151.0,0.00018174,2]
[424964140,1781358644000,-151.0,0.00018174,2]
[424964136,1781358644000,-151.0,0.00018174,2]
[424964138,1781358644000,-151.0,0.00018174,2]
[424964135,1781358644000,-151.0,0.00018174,2]
[424964142,1781358644000,-151.0,0.00018174,2]
[424964139,1781358644000,-151.0,0.00018174,2]
[424964133,1781358644000,-151.0,0.00018174,2]
[424964143,1781358644000,-151.0,0.00018174,2]
[424964137,1781358644000,-500.0,0.00018174,2]
[424964203,1781358645000,-200.0,0.0002,2]
[424964198,1781358645000,-2245.3,0.0002,2]
[424964199,1781358645000,-494.0,0.0002,2]
[424964200,1781358645000,-187.0,0.0002,2]
[424964201,1781358645000,-177.54216715,0.0002,2]
[424964196,1781358645000,-312.0,0.0002,2]
[424964197,1781358645000,-152.0,0.0002,2]
[424964202,1781358645000,-333.0,0.0002,2]
[424964204,1781358645000,-200.0,0.0002,2]
[424964206,1781358645000,-189395.0,0.0002,2]
[424964209,1781358645000,-212.0,0.0002,2]
[424964207,1781358645000,-1784.0,0.0002,2]
[424964208,1781358645000,-1506.0,0.0002,2]
[424964210,1781358645000,-300.0,0.000201,10]
[424964212,1781358645000,-518.0,0.00020136,2]
[424964211,1781358645000,-313.0,0.00020136,2]
[424964215,1781358645000,-10000.0,0.00020187,2]
[424964214,1781358645000,-445.38437253,0.0002014,7]
[424964213,1781358645000,-168.76911798,0.0002014,7]
[424964216,1781358645000,-501.0,0.00020188,4]
[424964195,1781358645000,-200.0,0.0002,10]
[424964205,1781358645000,-156.22114198,0.0002,20]
[424964193,1781358645000,-578.0,0.0002,2]
[424964218,1781358645000,-3557.0,0.00020351,2]
[424964191,1781358645000,-223.0,0.0002,2]
[424964171,1781358645000,-2157.14243826,0.0001927,2]
[424964169,1781358645000,-1726.70077648,0.000191,2]
[424964170,1781358645000,-654.85969545,0.00019204,2]
[424964172,1781358645000,-6890.60071849,0.000193,2]
[424964173,1781358645000,-1726.70077648,0.000193,2]
[424964175,1781358645000,-313.0,0.00019452,2]
[424964176,1781358645000,-518.0,0.00019452,2]
[424964174,1781358645000,-23068.22776804,0.00019339,7]
[424964177,1781358645000,-501.0,0.00019459,3]
[424964178,1781358645000,-6890.60071849,0.000195,2]
[424964190,1781358645000,-182.0,0.0002,2]
[424964183,1781358645000,-151.50162454,0.00019702,2]
[424964184,1781358645000,-2236.95670847,0.00019818,2]
[424964182,1781358645000,-1726.70077648,0.000197,2]
[424964180,1781358645000,-166.07,0.000196,2]
[424964181,1781358645000,-6890.60071849,0.000197,2]
[424964185,1781358645000,-1130.8036055,0.00019855,2]
[424964186,1781358645000,-593.54,0.0001995,2]
[424964189,1781358645000,-160.0,0.0002,2]
[424964188,1781358645000,-315.0,0.0002,2]
[424964192,1781358645000,-173.0,0.0002,2]
[424964187,1781358645000,-500.0,0.00019999,2]
[424964179,1781358645000,-1726.70077648,0.000195,2]
[424964217,1781358645000,-177.54216715,0.000202,2]
[424964194,1781358645000,-1178.0,0.0002,2]
[424964221,1781358645000,-150.0,0.00020351,2]
[424964255,1781358645000,-1466.44,0.00021093,2]
[424964249,1781358645000,-1784.0,0.00021,2]
[424964245,1781358645000,-494.0,0.00021,2]
[424964248,1781358645000,-200.0,0.00021,2]
[424964247,1781358645000,-333.0,0.00021,2]
[424964251,1781358645000,-1466.44,0.00021093,2]
[424964253,1781358645000,-1466.44,0.00021093,2]
[424964252,1781358645000,-1466.44,0.00021093,2]
[424964250,1781358645000,-150.0,0.00021,2]
[424964256,1781358645000,-1466.60152345,0.00021093,2]
[424964246,1781358645000,-187.0,0.00021,2]
[424964260,1781358645000,-153.05655402,0.00021251,2]
[424964259,1781358645000,-578.20924308,0.00021251,2]
[424964258,1781358645000,-156.25571878,0.00021251,2]
[424964262,1781358645000,-155.65257845,0.00021251,2]
[424964261,1781358645000,-201.93286101,0.00021251,2]
[424964264,1781358645000,-151.0,0.00021251,2]
[424964265,1781358645000,-160.13511027,0.00021251,2]
[424964266,1781358645000,-201.93286098,0.00021251,2]
[424964269,1781358645000,-201.932861,0.00021251,2]
[424964268,1781358645000,-4680.56300298,0.00021251,2]
[424964222,1781358645000,-150.0,0.00020351,2]
[424964263,1781358645000,-174.61919141,0.00021251,2]
[424964242,1781358645000,-1178.0,0.00021,2]
[424964257,1781358645000,-159.17527415,0.00021251,2]
[424964267,1781358645000,-695.39793187,0.00021251,2]
[424964243,1781358645000,-312.0,0.00021,2]
[424964220,1781358645000,-1228.0,0.00020351,2]
[424964219,1781358645000,-383.0,0.00020351,2]
[424964224,1781358645000,-362.3,0.00020381,2]
[424964225,1781358645000,-177.54216715,0.000204,2]
[424964223,1781358645000,-2319.72410669,0.00020366,2]
[424964226,1781358645000,-200.0,0.00020576,2]
[424964228,1781358645000,-150.0,0.0002058,2]
[424964229,1781358645000,-150.0,0.0002058,2]
[424964230,1781358645000,-177.54216715,0.000206,2]
[424964233,1781358645000,-2405.55389863,0.00020914,2]
[424964227,1781358645000,-150.0,0.0002058,2]
[424964241,1781358645000,-578.0,0.00021,2]
[424964234,1781358645000,-501.0,0.00020918,4]
[424964232,1781358645000,-518.0,0.00020821,2]
[424964235,1781358645000,-1853.1,0.00020966,2]
[424964236,1781358645000,-315.0,0.00021,2]
[424964238,1781358645000,-182.0,0.00021,2]
[424964237,1781358645000,-162.0,0.00021,2]
[424964239,1781358645000,-223.0,0.00021,2]
[424964240,1781358645000,-173.0,0.00021,2]
[424964231,1781358645000,-313.0,0.00020821,2]
[424964244,1781358645000,-152.0,0.00021,2]
[424964311,1781358646000,-170.331,0.00021384,2]
[424964307,1781358646000,-156.25571878,0.00021361,2]
[424964305,1781358646000,-156.25571878,0.00021306,2]
[424964306,1781358646000,-151.0,0.00021306,2]
[424964290,1781358646000,-500.0,0.00021251,2]
[424964304,1781358646000,-500.0,0.00021251,2]
[424964302,1781358646000,-500.0,0.00021251,2]
[424964293,1781358646000,-152.0,0.00021251,2]
[424964308,1781358646000,-151.0,0.00021361,2]
[424964303,1781358646000,-152.0,0.00021251,2]
[424964309,1781358646000,-2366.95391626,0.00021366,2]
[424964323,1781358646000,-500.0,0.00021602,7]
[424964312,1781358646000,-156.25571878,0.00021416,2]
[424964315,1781358646000,-156.25571878,0.00021471,2]
[424964314,1781358646000,-2494.55939288,0.00021462,2]
[424964316,1781358646000,-151.0,0.00021471,2]
[424964313,1781358646000,-151.0,0.00021416,2]
[424964321,1781358646000,-156.25571878,0.00021581,2]
[424964319,1781358646000,-156.25571878,0.00021526,2]
[424964318,1781358646000,-518.0,0.00021506,2]
[424964320,1781358646000,-151.0,0.00021526,2]
[424964317,1781358646000,-313.0,0.00021506,2]
[424964294,1781358646000,-500.0,0.00021251,2]
[424964310,1781358646000,-4245.325,0.00021384,2]
[424964296,1781358646000,-500.0,0.00021251,2]
[424964272,1781358646000,-160.0,0.00021251,2]
[424964297,1781358646000,-152.0,0.00021251,2]
[424964322,1781358646000,-151.0,0.00021581,2]
[424964270,1781358646000,-151.0,0.00021251,2]
[424964271,1781358646000,-152.0,0.00021251,2]
[424964273,1781358646000,-151.0,0.00021251,2]
[424964274,1781358646000,-9211.34798985,0.00021251,2]
[424964276,1781358646000,-200.0,0.00021251,2]
[424964275,1781358646000,-152.0,0.00021251,2]
[424964278,1781358646000,-201.93286098,0.00021251,2]
[424964277,1781358646000,-500.0,0.00021251,2]
[424964279,1781358646000,-151.0,0.00021251,2]
[424964283,1781358646000,-500.0,0.00021251,2]
[424964282,1781358646000,-668.65185757,0.00021251,2]
[424964284,1781358646000,-152.0,0.00021251,2]
[424964281,1781358646000,-500.0,0.00021251,2]
[424964285,1781358646000,-500.0,0.00021251,2]
[424964286,1781358646000,-152.0,0.00021251,2]
[424964280,1781358646000,-152.0,0.00021251,2]
[424964287,1781358646000,-500.0,0.00021251,2]
[424964301,1781358646000,-152.0,0.00021251,2]